[Event "Late-Titled-Tuesday-Blitz-April-23-2024"]
[Site "Chess.com"]
[Date "2024.04.23"]
[Round "5"]
[White "english_player_89"]
[Black "egnfanclub"]
[Result "0-1"]
[WhiteElo "2525"]
[BlackElo "2379"]
[TimeControl "180+1"]
[EndTime "14:56:05 PDT"]
[Termination "egnfanclub won by checkmate"]

1. e4 {[%clk 0:03:00.9]} 1... e5 {[%clk 0:02:59.8]} 2. Nf3 {[%clk 0:03:00.9]}
2... Nc6 {[%clk 0:02:59.9]} 3. Bc4 {[%clk 0:03:01.5]} 3... Nf6 {[%clk
0:02:59.7]} 4. d3 {[%clk 0:03:01.9]} 4... Bc5 {[%clk 0:02:59.6]} 5. Bb3 {[%clk
0:02:58]} 5... d6 {[%clk 0:02:59.5]} 6. c3 {[%clk 0:02:58.1]} 6... O-O {[%clk
0:02:57.3]} 7. Nbd2 {[%clk 0:02:58.7]} 7... a5 {[%clk 0:02:53.3]} 8. h3 {[%clk
0:02:57.5]} 8... b5 {[%clk 0:02:52.5]} 9. O-O {[%clk 0:02:55.2]} 9... a4 {[%clk
0:02:51.5]} 10. Bc2 {[%clk 0:02:53.2]} 10... h6 {[%clk 0:02:49.9]} 11. a3 {[%clk
0:02:52.7]} 11... Be6 {[%clk 0:02:48.5]} 12. Re1 {[%clk 0:02:52.4]} 12... Bb6
{[%clk 0:02:41.6]} 13. Nf1 {[%clk 0:02:52.2]} 13... Re8 {[%clk 0:02:40.5]} 14.
Ng3 {[%clk 0:02:49.5]} 14... Ne7 {[%clk 0:02:40.5]} 15. Nh4 {[%clk 0:02:47.9]}
15... Ng6 {[%clk 0:02:39.5]} 16. Nhf5 {[%clk 0:02:47.5]} 16... d5 {[%clk
0:02:37.3]} 17. Qf3 {[%clk 0:02:47]} 17... c6 {[%clk 0:02:30.3]} 18. h4 {[%clk
0:02:43.4]} 18... Bc7 {[%clk 0:02:29.1]} 19. h5 {[%clk 0:02:43.4]} 19... Nf4
{[%clk 0:02:22.4]} 20. Be3 {[%clk 0:02:06.4]} 20... Qd7 {[%clk 0:02:10.7]} 21.
Rad1 {[%clk 0:02:04.5]} 21... Rad8 {[%clk 0:01:27.6]} 22. d4 {[%clk 0:01:19.5]}
22... Bxf5 {[%clk 0:01:26.7]} 23. Nxf5 {[%clk 0:01:15]} 23... dxe4 {[%clk
0:01:08.8]} 24. Bxe4 {[%clk 0:00:45.3]} 24... Nxe4 {[%clk 0:01:08.9]} 25. Nxh6+
{[%clk 0:00:32.1]} 25... gxh6 {[%clk 0:01:07.8]} 26. dxe5 {[%clk 0:00:32.5]}
26... Qf5 {[%clk 0:00:52.1]} 27. g4 {[%clk 0:00:31.4]} 27... Qxe5 {[%clk
0:00:48.6]} 28. Rxd8 {[%clk 0:00:27.7]} 28... Rxd8 {[%clk 0:00:49.5]} 29. Bd4
{[%clk 0:00:26.6]} 29... Rxd4 {[%clk 0:00:30.4]} 30. cxd4 {[%clk 0:00:26.3]}
30... Qxd4 {[%clk 0:00:20.3]} 31. Qxe4 {[%clk 0:00:19.5]} 31... Nh3+ {[%clk
0:00:17.2]} 32. Kg2 {[%clk 0:00:19.1]} 32... Qxf2+ {[%clk 0:00:16.8]} 33. Kxh3
{[%clk 0:00:17.7]} 33... Qg3# {[%clk 0:00:17.1]} 0-1

[Event "Late-Titled-Tuesday-Blitz-April-23-2024"]
[Site "Chess.com"]
[Date "2024.04.23"]
[Round "5"]
[White "PositionalPanther"]
[Black "rhwr"]
[Result "1-0"]
[WhiteElo "2535"]
[BlackElo "2306"]
[TimeControl "180+1"]
[EndTime "14:56:07 PDT"]
[Termination "PositionalPanther won on time"]

1. a3 {[%clk 0:03:00.9]} 1... c5 {[%clk 0:03:00.9]} 2. b4 {[%clk 0:02:57.5]}
2... e6 {[%clk 0:02:57.4]} 3. Bb2 {[%clk 0:02:56.3]} 3... Nf6 {[%clk 0:02:57.7]}
4. b5 {[%clk 0:02:39.3]} 4... d5 {[%clk 0:02:57.5]} 5. c4 {[%clk 0:02:35.7]}
5... d4 {[%clk 0:02:56.1]} 6. d3 {[%clk 0:02:34.9]} 6... Bd6 {[%clk 0:02:54.1]}
7. g3 {[%clk 0:02:34.7]} 7... O-O {[%clk 0:02:52.6]} 8. Bg2 {[%clk 0:02:34.1]}
8... Nbd7 {[%clk 0:02:41.1]} 9. Nd2 {[%clk 0:02:33.1]} 9... Rb8 {[%clk
0:02:38.2]} 10. a4 {[%clk 0:02:30.5]} 10... a5 {[%clk 0:02:34.3]} 11. e4 {[%clk
0:01:56.4]} 11... dxe3 {[%clk 0:02:04]} 12. fxe3 {[%clk 0:01:57.3]} 12... Qc7
{[%clk 0:02:03]} 13. Ne2 {[%clk 0:01:40.9]} 13... b6 {[%clk 0:02:02.4]} 14. Nf4
{[%clk 0:01:32.6]} 14... Bb7 {[%clk 0:01:57.7]} 15. O-O {[%clk 0:01:27.6]} 15...
Bxg2 {[%clk 0:01:52.9]} 16. Kxg2 {[%clk 0:01:28.5]} 16... Be5 {[%clk 0:01:26.8]}
17. d4 {[%clk 0:01:22.1]} 17... cxd4 {[%clk 0:01:25.3]} 18. exd4 {[%clk
0:01:21.7]} 18... Bxf4 {[%clk 0:01:14.2]} 19. Rxf4 {[%clk 0:01:22.6]} 19... e5
{[%clk 0:01:14.5]} 20. dxe5 {[%clk 0:01:08.2]} 20... Nxe5 {[%clk 0:01:14]} 21.
Nf3 {[%clk 0:01:06]} 21... Nxc4 {[%clk 0:00:55.5]} 22. Qc1 {[%clk 0:00:59.9]}
22... Rbc8 {[%clk 0:00:44.6]} 23. Bxf6 {[%clk 0:00:58.2]} 23... gxf6 {[%clk
0:00:45.5]} 24. Rh4 {[%clk 0:00:43.3]} 24... Qc5 {[%clk 0:00:24]} 25. Qh6 {[%clk
0:00:34.6]} 25... Qf5 {[%clk 0:00:09.8]} 26. Rc1 {[%clk 0:00:21.9]} 26... Ne5
{[%clk 0:00:03.7]} 27. Nxe5 {[%clk 0:00:18]} 1-0

[Event "Late-Titled-Tuesday-Blitz-April-23-2024"]
[Site "Chess.com"]
[Date "2024.04.23"]
[Round "5"]
[White "DamianoLew95"]
[Black "zsizsi99"]
[Result "1-0"]
[WhiteElo "2746"]
[BlackElo "2489"]
[TimeControl "180+1"]
[EndTime "14:56:08 PDT"]
[Termination "DamianoLew95 won by resignation"]

1. e4 {[%clk 0:03:00.9]} 1... c5 {[%clk 0:02:55]} 2. Nf3 {[%clk 0:03:01.2]} 2...
Nc6 {[%clk 0:02:50]} 3. Bb5 {[%clk 0:03:01.4]} 3... Nf6 {[%clk 0:02:45.6]} 4.
Bxc6 {[%clk 0:02:52.1]} 4... dxc6 {[%clk 0:02:45.1]} 5. d3 {[%clk 0:02:52.8]}
5... g6 {[%clk 0:02:37.2]} 6. O-O {[%clk 0:02:50.2]} 6... Bg7 {[%clk 0:02:36.8]}
7. Re1 {[%clk 0:02:43.3]} 7... O-O {[%clk 0:02:22.2]} 8. h3 {[%clk 0:02:42.9]}
8... Qc7 {[%clk 0:02:19.9]} 9. a3 {[%clk 0:02:41.8]} 9... e5 {[%clk 0:02:15.8]}
10. Be3 {[%clk 0:02:41.5]} 10... b6 {[%clk 0:02:14.9]} 11. b4 {[%clk 0:02:40.8]}
11... cxb4 {[%clk 0:02:11.6]} 12. axb4 {[%clk 0:02:41.7]} 12... Nd7 {[%clk
0:01:55.6]} 13. Nbd2 {[%clk 0:02:40.6]} 13... f5 {[%clk 0:01:55.8]} 14. Nc4
{[%clk 0:02:37.2]} 14... f4 {[%clk 0:01:47]} 15. Bd2 {[%clk 0:02:37.5]} 15... b5
{[%clk 0:01:45]} 16. Na5 {[%clk 0:02:33.9]} 16... c5 {[%clk 0:01:45.4]} 17. bxc5
{[%clk 0:02:32.6]} 17... Nxc5 {[%clk 0:01:45.6]} 18. Qb1 {[%clk 0:02:31.7]}
18... a6 {[%clk 0:01:44.2]} 19. Bb4 {[%clk 0:02:18.2]} 19... Rd8 {[%clk
0:01:32.5]} 20. Qb2 {[%clk 0:02:14.9]} 20... h6 {[%clk 0:01:22.5]} 21. Nb3
{[%clk 0:01:53.5]} 21... Nxb3 {[%clk 0:01:19.4]} 22. Qxb3+ {[%clk 0:01:50.4]}
22... Qf7 {[%clk 0:01:16.7]} 23. Qb2 {[%clk 0:01:40.9]} 23... Re8 {[%clk
0:01:06.7]} 24. Bc3 {[%clk 0:01:38.2]} 24... Qe7 {[%clk 0:01:04.1]} 25. d4
{[%clk 0:01:33.6]} 25... exd4 {[%clk 0:01:02.2]} 26. Bxd4 {[%clk 0:01:32.5]}
26... Be6 {[%clk 0:00:57.5]} 27. Bxg7 {[%clk 0:01:18.8]} 27... Qxg7 {[%clk
0:00:58]} 28. Qb4 {[%clk 0:01:19.3]} 28... Bc4 {[%clk 0:00:57.2]} 29. Ra3 {[%clk
0:01:05.5]} 29... Qc7 {[%clk 0:00:52.3]} 30. Rea1 {[%clk 0:01:04.2]} 30... Rxe4
{[%clk 0:00:43.8]} 31. Rxa6 {[%clk 0:01:01.6]} 31... Rxa6 {[%clk 0:00:43.3]} 32.
Rxa6 {[%clk 0:01:02.5]} 32... Re6 {[%clk 0:00:41.4]} 33. Ra8+ {[%clk 0:00:59.6]}
33... Kh7 {[%clk 0:00:40.6]} 34. Qf8 {[%clk 0:00:51.9]} 34... Qg7 {[%clk
0:00:34.8]} 35. Qc5 {[%clk 0:00:51.4]} 35... Re7 {[%clk 0:00:29]} 36. Rc8 {[%clk
0:00:47.8]} 36... g5 {[%clk 0:00:21.5]} 37. Qf5+ {[%clk 0:00:46.8]} 37... Qg6
{[%clk 0:00:20.7]} 38. Rh8+ {[%clk 0:00:44.9]} 38... Kxh8 {[%clk 0:00:21]} 39.
Qxg6 {[%clk 0:00:44.7]} 39... Re6 {[%clk 0:00:21.7]} 40. Qf5 {[%clk 0:00:41]}
40... Kg7 {[%clk 0:00:21.5]} 41. Ne5 {[%clk 0:00:39.7]} 41... Rf6 {[%clk
0:00:20.2]} 42. Qd7+ {[%clk 0:00:39.7]} 42... Kg8 {[%clk 0:00:19.6]} 43. Nxc4
{[%clk 0:00:37.2]} 43... bxc4 {[%clk 0:00:19.3]} 44. Qc8+ {[%clk 0:00:37.3]} 1-0

[Event "Late-Titled-Tuesday-Blitz-April-23-2024"]
[Site "Chess.com"]
[Date "2024.04.23"]
[Round "5"]
[White "Ghost_Pepper"]
[Black "cthake"]
[Result "1-0"]
[WhiteElo "2485"]
[BlackElo "1861"]
[TimeControl "180+1"]
[EndTime "14:56:08 PDT"]
[Termination "Ghost_Pepper won by resignation"]

1. e4 {[%clk 0:02:54.8]} 1... c5 {[%clk 0:02:59.9]} 2. Nf3 {[%clk 0:02:52.3]}
2... Nc6 {[%clk 0:02:59.8]} 3. g3 {[%clk 0:02:52.2]} 3... g6 {[%clk 0:02:57.4]}
4. Bg2 {[%clk 0:02:52.7]} 4... Bg7 {[%clk 0:02:57.5]} 5. O-O {[%clk 0:02:53.4]}
5... d6 {[%clk 0:02:54.9]} 6. Nc3 {[%clk 0:02:52.7]} 6... Nf6 {[%clk 0:02:54.6]}
7. d4 {[%clk 0:02:51.3]} 7... cxd4 {[%clk 0:02:53.5]} 8. Nxd4 {[%clk 0:02:52.2]}
8... O-O {[%clk 0:02:52.8]} 9. Nde2 {[%clk 0:02:51.9]} 9... Bd7 {[%clk
0:02:48.1]} 10. Kh1 {[%clk 0:02:52.1]} 10... a6 {[%clk 0:02:47.3]} 11. f4 {[%clk
0:02:52]} 11... Qb6 {[%clk 0:02:37.1]} 12. Rb1 {[%clk 0:02:47.8]} 12... Ng4
{[%clk 0:02:36.2]} 13. Nd5 {[%clk 0:02:40.4]} 13... Qd8 {[%clk 0:02:23.8]} 14.
c4 {[%clk 0:02:34.9]} 14... Nf6 {[%clk 0:02:13.8]} 15. Be3 {[%clk 0:02:32.8]}
15... Nxd5 {[%clk 0:02:11.4]} 16. cxd5 {[%clk 0:01:58.7]} 16... Na5 {[%clk
0:02:07.1]} 17. b3 {[%clk 0:01:57.9]} 17... b5 {[%clk 0:02:04.7]} 18. Nd4 {[%clk
0:01:56.1]} 18... Rc8 {[%clk 0:02:02.3]} 19. Qd2 {[%clk 0:01:55]} 19... Nb7
{[%clk 0:02:01]} 20. Nc6 {[%clk 0:01:43.8]} 20... Qe8 {[%clk 0:01:45.5]} 21.
Rbc1 {[%clk 0:01:38.2]} 21... Nc5 {[%clk 0:01:39.5]} 22. b4 {[%clk 0:01:28.1]}
22... Na4 {[%clk 0:01:26]} 23. Nd4 {[%clk 0:01:19]} 23... Rc4 {[%clk 0:01:16.4]}
24. a3 {[%clk 0:01:11.6]} 24... Qc8 {[%clk 0:01:12.2]} 25. e5 {[%clk 0:00:57.5]}
25... dxe5 {[%clk 0:01:09.5]} 26. fxe5 {[%clk 0:00:58.4]} 26... Bxe5 {[%clk
0:01:08.5]} 27. Nc6 {[%clk 0:00:58]} 27... Bxc6 {[%clk 0:01:02.4]} 28. dxc6
{[%clk 0:00:58.9]} 28... Bc3 {[%clk 0:01:01.4]} 29. Qd5 {[%clk 0:00:56.9]} 29...
e6 {[%clk 0:00:57.3]} 30. Qf3 {[%clk 0:00:55]} 30... f5 {[%clk 0:00:38.5]} 31.
Bh6 {[%clk 0:00:50.3]} 31... Rf7 {[%clk 0:00:31.2]} 32. Rfd1 {[%clk 0:00:47]}
32... e5 {[%clk 0:00:19.9]} 33. Qd5 {[%clk 0:00:45.6]} 33... Nb6 {[%clk
0:00:18.9]} 34. Qd8+ {[%clk 0:00:44.8]} 34... Rf8 {[%clk 0:00:13.5]} 35. Qxb6
{[%clk 0:00:44.7]} 35... Re8 {[%clk 0:00:09.9]} 36. Bd5+ {[%clk 0:00:41.1]}
36... Kh8 {[%clk 0:00:09.6]} 37. Bxc4 {[%clk 0:00:41.3]} 37... bxc4 {[%clk
0:00:10.1]} 38. Qc5 {[%clk 0:00:41.4]} 38... e4 {[%clk 0:00:09.8]} 39. Rxc3
{[%clk 0:00:40.6]} 39... e3 {[%clk 0:00:10.2]} 40. Qd4+ {[%clk 0:00:40.7]} 1-0

[Event "Late-Titled-Tuesday-Blitz-April-23-2024"]
[Site "Chess.com"]
[Date "2024.04.23"]
[Round "5"]
[White "tarno17"]
[Black "1g60-1"]
[Result "0-1"]
[WhiteElo "2147"]
[BlackElo "2438"]
[TimeControl "180+1"]
[EndTime "14:56:09 PDT"]
[Termination "1g60-1 won on time"]

1. e4 {[%clk 0:03:00.9]} 1... e6 {[%clk 0:03:00.1]} 2. d4 {[%clk 0:03:00.8]}
2... d5 {[%clk 0:03:00.4]} 3. Nd2 {[%clk 0:03:01.2]} 3... Nf6 {[%clk 0:03:00.4]}
4. e5 {[%clk 0:03:01.5]} 4... Nfd7 {[%clk 0:03:00.9]} 5. Bd3 {[%clk 0:03:02.3]}
5... c5 {[%clk 0:03:01.3]} 6. c3 {[%clk 0:03:02.9]} 6... Nc6 {[%clk 0:03:01.9]}
7. Ne2 {[%clk 0:03:03.2]} 7... cxd4 {[%clk 0:03:02.3]} 8. cxd4 {[%clk 0:03:04]}
8... f6 {[%clk 0:03:02.8]} 9. exf6 {[%clk 0:03:04.6]} 9... Nxf6 {[%clk
0:03:03.7]} 10. O-O {[%clk 0:03:03.3]} 10... Bd6 {[%clk 0:03:04.3]} 11. Nf3
{[%clk 0:03:03.6]} 11... Qc7 {[%clk 0:03:04.7]} 12. Bg5 {[%clk 0:03:00.3]} 12...
O-O {[%clk 0:03:04.6]} 13. Bh4 {[%clk 0:02:49]} 13... Nh5 {[%clk 0:03:04.3]} 14.
Bg3 {[%clk 0:02:36.1]} 14... Nxg3 {[%clk 0:03:04.2]} 15. Nxg3 {[%clk 0:02:36.2]}
15... g6 {[%clk 0:02:49.3]} 16. Rc1 {[%clk 0:02:22.2]} 16... Qb6 {[%clk
0:02:39.6]} 17. Ng5 {[%clk 0:01:52.1]} 17... Qxd4 {[%clk 0:02:07.2]} 18. Nxh7
{[%clk 0:01:32.4]} 18... Rf7 {[%clk 0:01:17.3]} 19. Bxg6 {[%clk 0:01:13.4]}
19... Rg7 {[%clk 0:01:17.4]} 20. Qxd4 {[%clk 0:01:07.5]} 20... Nxd4 {[%clk
0:01:16.7]} 21. Nf6+ {[%clk 0:01:04.4]} 21... Kf8 {[%clk 0:01:10.5]} 22. Bd3
{[%clk 0:00:48.7]} 22... Ke7 {[%clk 0:00:52.2]} 23. Ngh5 {[%clk 0:00:42.8]}
23... Rf7 {[%clk 0:00:42.9]} 24. Ng4 {[%clk 0:00:32.4]} 24... e5 {[%clk
0:00:38.8]} 25. Rfe1 {[%clk 0:00:25.8]} 25... Bxg4 {[%clk 0:00:34.2]} 26. Ng3
{[%clk 0:00:14.9]} 26... Raf8 {[%clk 0:00:25.5]} 27. f3 {[%clk 0:00:11]} 27...
Be6 {[%clk 0:00:23.9]} 28. Rcd1 {[%clk 0:00:04.6]} 28... Nc6 {[%clk 0:00:21.8]}
29. Bg6 {[%clk 0:00:02.4]} 29... Bc5+ {[%clk 0:00:19.7]} 0-1

[Event "Late-Titled-Tuesday-Blitz-April-23-2024"]
[Site "Chess.com"]
[Date "2024.04.23"]
[Round "5"]
[White "Artem_Koval"]
[Black "ArtemDyachuk"]
[Result "1-0"]
[WhiteElo "2565"]
[BlackElo "2726"]
[TimeControl "180+1"]
[EndTime "14:56:10 PDT"]
[Termination "Artem_Koval won by checkmate"]

1. d4 {[%clk 0:03:00.1]} 1... Nf6 {[%clk 0:02:59.5]} 2. Nf3 {[%clk 0:03:00.3]}
2... e6 {[%clk 0:02:59.6]} 3. Bf4 {[%clk 0:02:59.9]} 3... d5 {[%clk 0:02:53.4]}
4. e3 {[%clk 0:02:59.9]} 4... c5 {[%clk 0:02:48.9]} 5. c3 {[%clk 0:02:59.9]}
5... Nc6 {[%clk 0:02:49.4]} 6. Nbd2 {[%clk 0:02:59.7]} 6... Be7 {[%clk
0:02:49.1]} 7. Bd3 {[%clk 0:02:59.2]} 7... Nh5 {[%clk 0:02:42.4]} 8. Bg3 {[%clk
0:02:53]} 8... Nxg3 {[%clk 0:02:41.8]} 9. hxg3 {[%clk 0:02:53.9]} 9... g6 {[%clk
0:02:38]} 10. Qe2 {[%clk 0:02:47.6]} 10... Qb6 {[%clk 0:02:25.4]} 11. Rb1 {[%clk
0:02:34.5]} 11... Bd7 {[%clk 0:02:13.3]} 12. dxc5 {[%clk 0:02:19.4]} 12... Bxc5
{[%clk 0:02:11.4]} 13. e4 {[%clk 0:02:20]} 13... O-O-O {[%clk 0:01:57.8]} 14.
O-O {[%clk 0:02:15.4]} 14... Qc7 {[%clk 0:01:34.6]} 15. b4 {[%clk 0:02:08.3]}
15... Bb6 {[%clk 0:01:32.8]} 16. a4 {[%clk 0:02:06.1]} 16... a6 {[%clk
0:01:16.6]} 17. c4 {[%clk 0:01:58.8]} 17... dxe4 {[%clk 0:01:12.5]} 18. Nxe4
{[%clk 0:01:49.8]} 18... Nd4 {[%clk 0:00:50.3]} 19. Nxd4 {[%clk 0:01:45.4]}
19... Bxd4 {[%clk 0:00:51.2]} 20. c5 {[%clk 0:01:35.6]} 20... Bxa4 {[%clk
0:00:40.5]} 21. Bxa6 {[%clk 0:01:17.2]} 21... bxa6 {[%clk 0:00:29.8]} 22. Qxa6+
{[%clk 0:01:13]} 22... Qb7 {[%clk 0:00:30]} 23. Qxa4 {[%clk 0:00:54.2]} 23...
Qxe4 {[%clk 0:00:29.3]} 24. c6 {[%clk 0:00:52.1]} 24... Bxf2+ {[%clk 0:00:16.8]}
25. Kh2 {[%clk 0:00:26.9]} 25... Bd4 {[%clk 0:00:07]} 26. Rxf7 {[%clk
0:00:20.8]} 26... Kb8 {[%clk 0:00:02]} 27. Rb7+ {[%clk 0:00:18.6]} 27... Kc8
{[%clk 0:00:02.3]} 28. Qa8# {[%clk 0:00:19.5]} 1-0

[Event "Late-Titled-Tuesday-Blitz-April-23-2024"]
[Site "Chess.com"]
[Date "2024.04.23"]
[Round "5"]
[White "traack"]
[Black "andrew-blr"]
[Result "0-1"]
[WhiteElo "2463"]
[BlackElo "2621"]
[TimeControl "180+1"]
[EndTime "14:56:11 PDT"]
[Termination "andrew-blr won by resignation"]

1. e4 {[%clk 0:03:00.9]} 1... c5 {[%clk 0:02:59.3]} 2. c3 {[%clk 0:02:59.9]}
2... d5 {[%clk 0:02:57.8]} 3. exd5 {[%clk 0:02:59.5]} 3... Qxd5 {[%clk
0:02:58.1]} 4. d4 {[%clk 0:03:00.1]} 4... Nf6 {[%clk 0:02:54.6]} 5. Nf3 {[%clk
0:02:59.5]} 5... e6 {[%clk 0:02:51.3]} 6. Na3 {[%clk 0:02:34.2]} 6... a6 {[%clk
0:02:48]} 7. Bc4 {[%clk 0:02:30.9]} 7... Qc6 {[%clk 0:02:44.7]} 8. Qe2 {[%clk
0:02:26.4]} 8... Nbd7 {[%clk 0:02:42.1]} 9. O-O {[%clk 0:02:20.6]} 9... b5
{[%clk 0:02:40.7]} 10. Bb3 {[%clk 0:02:15.1]} 10... Bb7 {[%clk 0:02:39]} 11. Bf4
{[%clk 0:02:01.2]} 11... g5 {[%clk 0:02:28.5]} 12. Bxg5 {[%clk 0:01:54.9]} 12...
Rg8 {[%clk 0:02:28.2]} 13. d5 {[%clk 0:01:16.7]} 13... Nxd5 {[%clk 0:02:27.4]}
14. Rad1 {[%clk 0:01:03.1]} 14... Nf4 {[%clk 0:01:49.4]} 15. Bxf4 {[%clk
0:00:46.1]} 15... Qxf3 {[%clk 0:01:48.8]} 16. Qxf3 {[%clk 0:00:45.7]} 16... Bxf3
{[%clk 0:01:48.7]} 17. Bg3 {[%clk 0:00:40.2]} 17... Bxd1 {[%clk 0:01:46.5]} 18.
Bxd1 {[%clk 0:00:41.1]} 18... O-O-O {[%clk 0:01:41.1]} 19. Bc2 {[%clk
0:00:40.5]} 19... h5 {[%clk 0:01:35.5]} 20. Be4 {[%clk 0:00:31]} 20... Nb6
{[%clk 0:01:29.4]} 21. Nc2 {[%clk 0:00:29.6]} 21... f5 {[%clk 0:01:26.3]} 22.
Bf3 {[%clk 0:00:29.5]} 22... Bd6 {[%clk 0:01:22.8]} 23. Bxh5 {[%clk 0:00:28.1]}
23... Bxg3 {[%clk 0:01:18.9]} 24. hxg3 {[%clk 0:00:28.3]} 24... Rd2 {[%clk
0:01:19.2]} 25. Rc1 {[%clk 0:00:22.9]} 25... Kc7 {[%clk 0:01:11.6]} 26. b4
{[%clk 0:00:23.3]} 26... Na4 {[%clk 0:01:04.6]} 27. bxc5 {[%clk 0:00:21.4]}
27... Nxc3 {[%clk 0:01:03.2]} 28. Nb4 {[%clk 0:00:21.7]} 28... Nxa2 {[%clk
0:00:54]} 29. Nxa6+ {[%clk 0:00:21.3]} 29... Kb7 {[%clk 0:00:53.9]} 30. c6+
{[%clk 0:00:20.4]} 30... Kxa6 {[%clk 0:00:52.9]} 31. Re1 {[%clk 0:00:21.3]}
31... Rc8 {[%clk 0:00:49.8]} 32. Rxe6 {[%clk 0:00:21.6]} 32... Rc7 {[%clk
0:00:49.9]} 33. Bf3 {[%clk 0:00:22.1]} 33... b4 {[%clk 0:00:49.5]} 34. Re8
{[%clk 0:00:19.8]} 34... Nc3 {[%clk 0:00:44.8]} 35. Ra8+ {[%clk 0:00:20]} 35...
Kb5 {[%clk 0:00:41.4]} 36. Rb8+ {[%clk 0:00:20.9]} 36... Kc5 {[%clk 0:00:41.5]}
37. Rb7 {[%clk 0:00:20.5]} 37... Nb5 {[%clk 0:00:39.2]} 38. Kf1 {[%clk 0:00:19]}
38... b3 {[%clk 0:00:39]} 39. Be2 {[%clk 0:00:18.7]} 39... Rxe2 {[%clk
0:00:37.4]} 40. Kxe2 {[%clk 0:00:18.6]} 40... b2 {[%clk 0:00:37.8]} 0-1

[Event "Late-Titled-Tuesday-Blitz-April-23-2024"]
[Site "Chess.com"]
[Date "2024.04.23"]
[Round "5"]
[White "rdarruda"]
[Black "ChessGiantYouTube"]
[Result "1/2-1/2"]
[WhiteElo "2534"]
[BlackElo "2357"]
[TimeControl "180+1"]
[EndTime "14:56:15 PDT"]
[Termination "Game drawn by repetition"]

1. Nf3 {[%clk 0:02:24.4]} 1... g6 {[%clk 0:02:58.9]} 2. d4 {[%clk 0:02:24.1]}
2... Bg7 {[%clk 0:02:59.4]} 3. e4 {[%clk 0:02:24.3]} 3... d6 {[%clk 0:02:59.8]}
4. Nc3 {[%clk 0:02:24.5]} 4... e6 {[%clk 0:03:00]} 5. Bg5 {[%clk 0:02:23.9]}
5... Ne7 {[%clk 0:03:00]} 6. Qd2 {[%clk 0:02:23.5]} 6... h6 {[%clk 0:03:00.3]}
7. Be3 {[%clk 0:02:22]} 7... b6 {[%clk 0:02:58.4]} 8. h4 {[%clk 0:02:20.8]} 8...
Bb7 {[%clk 0:02:57.4]} 9. O-O-O {[%clk 0:02:19.4]} 9... Nd7 {[%clk 0:02:56.2]}
10. Kb1 {[%clk 0:02:09.8]} 10... a6 {[%clk 0:02:55.7]} 11. Bd3 {[%clk
0:01:57.8]} 11... b5 {[%clk 0:02:54.7]} 12. a3 {[%clk 0:01:56.6]} 12... c5
{[%clk 0:02:52.6]} 13. Rhe1 {[%clk 0:01:31.9]} 13... Qc7 {[%clk 0:02:51.6]} 14.
e5 {[%clk 0:01:28.7]} 14... d5 {[%clk 0:02:37.8]} 15. dxc5 {[%clk 0:01:26.7]}
15... Nxc5 {[%clk 0:02:28.3]} 16. h5 {[%clk 0:01:25.6]} 16... g5 {[%clk
0:02:12.3]} 17. Ne2 {[%clk 0:01:24.3]} 17... Ne4 {[%clk 0:01:42.5]} 18. Qc1
{[%clk 0:01:16]} 18... Nc6 {[%clk 0:01:27.2]} 19. Ned4 {[%clk 0:01:11.4]} 19...
Nxe5 {[%clk 0:01:21.5]} 20. Nxe5 {[%clk 0:01:11.3]} 20... Bxe5 {[%clk
0:01:04.9]} 21. f3 {[%clk 0:01:10.7]} 21... Nf6 {[%clk 0:00:53]} 22. c3 {[%clk
0:00:58.9]} 22... Bf4 {[%clk 0:00:32.5]} 23. Bg6 {[%clk 0:00:44.6]} 23... O-O-O
{[%clk 0:00:22.6]} 24. Bc2 {[%clk 0:00:39]} 24... Nxh5 {[%clk 0:00:20.4]} 25. g4
{[%clk 0:00:30.9]} 25... Bxe3 {[%clk 0:00:18.9]} 26. Qxe3 {[%clk 0:00:29.7]}
26... Nf4 {[%clk 0:00:19.6]} 27. Rh1 {[%clk 0:00:26.8]} 27... Kb8 {[%clk
0:00:19.1]} 28. Nb3 {[%clk 0:00:26.2]} 28... Rc8 {[%clk 0:00:16.9]} 29. Rd2
{[%clk 0:00:23.6]} 29... a5 {[%clk 0:00:17.2]} 30. Nd4 {[%clk 0:00:22]} 30...
Ba6 {[%clk 0:00:15.9]} 31. Bd3 {[%clk 0:00:21.9]} 31... Qb7 {[%clk 0:00:15.6]}
32. Bf1 {[%clk 0:00:20.5]} 32... Rce8 {[%clk 0:00:14.4]} 33. Qe5+ {[%clk
0:00:20.2]} 33... Qc7 {[%clk 0:00:13.7]} 34. Qf6 {[%clk 0:00:19.2]} 34... Qe7
{[%clk 0:00:12.8]} 35. Qe5+ {[%clk 0:00:18.7]} 35... Qc7 {[%clk 0:00:12.7]} 36.
Qf6 {[%clk 0:00:18.7]} 36... Qe7 {[%clk 0:00:13.4]} 37. Qe5+ {[%clk 0:00:18.5]}
37... Qc7 {[%clk 0:00:14]} 1/2-1/2